[Event "AUT Bundesliga Women 2021-22"]
[Site "Austria"]
[Date "2022.04.22"]
[Round "8.2"]
[White "Kejzar, Petra"]
[Black "Batyte, Daiva"]
[Result "1-0"]
[ECO "A06"]
[WhiteElo "2031"]
[BlackElo "2122"]
[Annotator "TA"]
[PlyCount "101"]
[EventDate "2021.11.06"]
[EventType "team-tourn"]
[EventCountry "AUT"]
[SourceTitle "playchess.com"]
[Source "ChessBase"]
[SourceQuality "1"]
[TimeControl "40/5400+30:1800+30"]

{[%evp 12,101,-11,-20,0,-2,7,1,51,0,0,0,14,10,10,-6,20,9,8,7,52,0,70,-23,110,118,143,111,108,114,105,12,16,-63,418,406,416,415,428,428,431,412,468,452,467,458,477,447,558,537,604,602,612,595,905,899,915,953,893,980,966,916,947,910,940,910,1524,1314,12834,956,1710,1509,1639,1583,1639,1629,1468,1446,1240,1157,1560,1499,1391,1369,2056,1972,1611,1602,1377,1289,1054,968]} 1. c4 {[%emt 0:00:03]} e6 {[%emt 0:00:20]} 2. Nf3 {[%emt 0:00:12]} d5 {[%emt 0:00:24]} 3. b3 {[%emt 0:00:18]} Nf6 {[%emt 0:01:11]} 4. Bb2 {[%emt 0:00:39]} c5 {[%emt 0:00:51]} 5. e3 {[%emt 0:00:45]} Nc6 {[%emt 0:00:59]} 6. d4 {[%emt 0:01:08]} cxd4 {[%emt 0:01:14]} 7. exd4 {[%emt 0:02:14]} Bb4+ {[%emt 0:02:36] A13: English Opening: 1...e6.} 8. Nbd2 $1 {[%emt 0:04:27]} Ne4 {[%emt 0:04:05] [#] Strongly threatening ...Qf6.} 9. a3 {[%emt 0:03:35]} Be7 {[%emt 0:00:34] [#]} (9... Nxd2 $11 10. Nxd2 Be7) 10. Nxe4 $146 {[%emt 0:03:16]} (10. Bd3 $14) ({Predecessor:} 10. Bd3 f5 11. O-O a5 12. Rc1 O-O 13. Ne5 Nxe5 14. dxe5 Nxd2 15. Qxd2 b6 16. Rfd1 dxc4 17. Rxc4 {½-½ (44) Galliamova,A (2440)-Tregubov,P (2525) Novgorod 1997}) 10... dxe4 $11 {[%emt 0:01:04]} 11. Ne5 {[%emt 0:02:32]} O-O {[%emt 0:07:45]} 12. Nxc6 {[%emt 0:05:43]} bxc6 {[%emt 0:00:07]} 13. Qc2 {[%emt 0:01:09]} Rb8 {[%emt 0:02:33][%cal Oe6e5]} (13... e5 $5 14. dxe5 (14. Qxe4 exd4 15. O-O-O Bf6 $11) 14... Bf5 $11) 14. c5 {[%emt 0:03:49]} Bf6 {[%emt 0:03:20]} 15. Rd1 {[%emt 0:03:09]} Qc7 {[%emt 0:02:01]} (15... Ba6 $5) 16. Bc4 {[%emt 0:05:04]} (16. Qc3 $14) 16... e5 {[%emt 0:01:02]} (16... Ba6 $1 $11) 17. Qxe4 {[%emt 0:05:37]} (17. d5 $14) 17... exd4 {[%emt 0:01:40]} (17... Qa5+ $1 $11 {keeps the balance.} 18. Kf1 exd4) 18. O-O $16 {[%emt 0:01:27] White is more active.} ({Much less strong is} 18. Bxd4 Bxd4 19. Rxd4 (19. Qxd4 Re8+ 20. Kf1 Bf5 $15) 19... Ba6 $14) 18... g6 {[%emt 0:07:16]} 19. Rxd4 {[%emt 0:16:07]} Bf5 {[%emt 0:01:22]} 20. Qe3 {[%emt 0:01:32]} Rfe8 {[%emt 0:01:05]} 21. Qh6 {[%emt 0:02:11]} (21. Qd2 $16) 21... Qe7 $11 {[%emt 0:02:07]} 22. g4 {[%emt 0:12:05]} (22. Qd2 $11) 22... Bg7 $2 {[%emt 0:03:56][%mdl 8192] [#] Black cannot hold the game after this.} 23. Qxg7+ $1 $18 {[%emt 0:02:47][%mdl 512]} Kxg7 {[%emt 0:00:16]} 24. Rd7+ {[%emt 0:00:36]} f6 {[%emt 0:03:02]} 25. Rxe7+ {[%emt 0:01:09]} Rxe7 {[%emt 0:00:06]} 26. gxf5 {[%emt 0:00:06]} Rd8 {[%emt 0:02:43]} 27. fxg6 {[%emt 0:01:23] White is clearly winning.} hxg6 {[%emt 0:02:29]} 28. Kg2 {[%emt 0:01:34]} Rd2 {[%emt 0:04:20]} 29. Bc1 {[%emt 0:01:35]} Rc2 {[%emt 0:00:44]} 30. Bf4 {[%emt 0:00:33]} a5 {[%emt 0:01:45]} 31. a4 {[%emt 0:00:25]} g5 {[%emt 0:00:40]} 32. Bd6 {[%emt 0:00:14]} Re4 {[%emt 0:02:49]} 33. Bd3 {[%emt 0:01:25][%csl LRc2,LRe4]} Rg4+ {[%emt 0:01:03]} 34. Kf3 {[%emt 0:00:51]} Rc3 {[%emt 0:00:04]} 35. Kxg4 {[%emt 0:01:05] Be4 would kill now.} Rxd3 {[%emt 0:00:08][%mdl 4096] Endgame KRB-KR} 36. Kf5 {[%emt 0:01:03] Threatens to win with Ke6.} Kf7 37. f4 {[%emt 0:03:22]} gxf4 {[%emt 0:00:52]} 38. Rxf4 {[%emt 0:00:14]} Rxb3 {[%emt 0:00:23]} 39. h4 {[%emt 0:00:45] aiming for Re4.} Rg3 {[%emt 0:01:52]} 40. Bc7 {[%emt 0:00:14]} Rd3 {[%emt 0:00:31]} 41. Bb6 {[%emt 0:30:26]} Rd5+ {[%emt 0:30:52]} 42. Kg4 {[%emt 0:00:13]} Ke6 {[%emt 0:00:52]} 43. Re4+ {[%emt 0:00:14]} Kf7 {[%emt 0:00:11]} 44. Rc4 {[%emt 0:00:11]} Ke6 {[%emt 0:01:08]} 45. Bxa5 {[%emt 0:01:45]} f5+ {[%emt 0:00:31]} 46. Kf4 {[%emt 0:01:23]} Rd1 {[%emt 0:00:42]} 47. Bb6 {[%emt 0:01:39]} Rf1+ {[%emt 0:00:31]} 48. Ke3 {[%emt 0:00:42]} Ra1 {[%emt 0:00:41]} 49. a5 {[%emt 0:00:27]} Ke5 {[%emt 0:00:24]} 50. Kd3 {[%emt 0:02:46]} f4 {[%emt 0:00:56]} 51. h5 {[%emt 0:00:55] Weighted Error Value: White=0.25 (precise) /Black=0.68} 1-0

[Event "AUT Bundesliga Women 2021-22"]
[Site "Austria"]
[Date "2022.04.22"]
[Round "8.3"]
[White "Mar, Karmen"]
[Black "Hiebler, Laura"]
[Result "1-0"]
[ECO "C07"]
[WhiteElo "2003"]
[BlackElo "2011"]
[Annotator "TA"]
[PlyCount "77"]
[EventDate "2021.11.06"]
[EventType "team-tourn"]
[EventCountry "AUT"]
[SourceTitle "playchess.com"]
[Source "ChessBase"]
[SourceQuality "1"]
[TimeControl "40/5400+30:1800+30"]

{[%evp 26,77,35,5,24,21,38,14,21,14,14,22,25,-25,-24,-57,164,168,1185,286,272,0,0,-142,-39,-27,0,0,0,0,0,0,999,992,987,989,864,484,470,477,484,484,484,383,484,477,477,477,477,475,468,462,430,400]} 1. e4 {[%emt 0:00:08] Negi,P} e6 {[%emt 0:00:09]} 2. d4 {[%emt 0:00:20]} d5 {[%emt 0:00:11]} 3. Nd2 {[%emt 0:00:13]} c5 {[%emt 0:00:19]} 4. exd5 {[%emt 0:00:18]} Qd7 5. d6 Qxd6 {[%emt 0:00:39]} 6. Ngf3 {[%emt 0:00:51]} Qd5 {[%emt 0:00:28]} 7. Bd3 cxd4 8. Bc4 {[%emt 0:00:48]} Qd6 {[%emt 0:00:39]} 9. O-O {[%emt 0:00:30]} Nf6 {[%emt 0:00:33]} 10. Nb3 {[%emt 0:00:29]} Nc6 {[%emt 0:00:18]} 11. Nbxd4 {[%emt 0:00:23]} Nxd4 {[%emt 0:00:08]} 12. Nxd4 {[%emt 0:00:12]} a6 {[%emt 0:00:16] 12...a6 has become a bit dusty these days.} 13. Re1 {[%emt 0:01:13]} Qc7 {[%emt 0:02:45]} 14. Qe2 {[%emt 0:01:32]} Bc5 {[%emt 0:01:28] C07: French Tarrasch: 3...c5, 4 Ngf3 and 4 exd5 Qxd5.} 15. c3 {[%emt 0:28:05]} b5 {[%emt 0:01:42]} 16. Bb3 {[%emt 0:05:17]} O-O {[%emt 0:01:49] The position is equal.} 17. Bg5 {[%emt 0:07:51] And now Bxf6 would win.} Bb7 {[%emt 0:03:13]} 18. Bxf6 {[%emt 0:08:23]} gxf6 {[%emt 0:00:06][%cal Bg7f6,Bf6f5][%mdl 32] [#]} 19. Bc2 $146 {[%emt 0:02:21]} (19. Qh5 $142 Kh8 20. Qh6) ({Predecessor:} 19. Qh5 Bxd4 20. cxd4 Qf4 21. Re3 Be4 22. g3 Qf5 23. Qxf5 Bxf5 24. g4 Bg6 25. f4 f5 26. g5 Kg7 27. Rd1 {½-½ (54) Karjakin,S (2772)-Radjabov,T (2713) Shamkir 2014 CBM 160 [Negi,P]}) 19... f5 $11 {[%emt 0:17:26]} 20. Rad1 {[%emt 0:13:51]} Bd6 $2 {[%emt 0:05:42]} (20... Kh8 $15 {keeps the upper hand.}) 21. Qh5 $18 {[%emt 0:03:43]} Rad8 $2 {[%emt 0:21:04] [#]} (21... Rfe8) 22. Rd3 $2 {[%emt 0:10:22]} (22. Bxf5 $1 {[%csl Gf5][%cal Rh5h7][%mdl 512]} f6 23. Nxe6) 22... Bf4 {[%emt 0:03:52] [#]} 23. Rh3 $2 $40 {[%emt 0:01:49][%mdl 128] White is up to no good.} ({Don't play} 23. g3 $6 Be5 $16) (23. Rg3+ $1 $18 {[%mdl 512]} Bxg3 (23... Kh8 24. Qh4) 24. Qg5+ Kh8 25. Qf6+ Kg8 26. Qg5+ Kh8 27. Qf6+ Kg8 28. Qg5+) 23... h6 $11 {[%emt 0:00:37][%cal Od8d4] Strongly threatening ...Rxd4!} 24. Bxf5 {[%emt 0:09:48] [#]} exf5 {[%emt 0:13:49]} (24... Rxd4 $1 $17 {[%mdl 512]} 25. Bxe6 {[#]} (25. cxd4 exf5 26. Rd3 Be4 $17) 25... fxe6 $1 26. Qg6+ Qg7 27. Qxg7+ Kxg7 28. cxd4 Rc8) 25. Nxf5 $15 {[%emt 0:00:32]} Rfe8 {[%emt 0:01:30][%cal Re8e1]} (25... Qb6 $2 26. Qg4+ Qg6 27. Ne7+ Kh8 28. Nxg6+ $18) (25... Rd6 $5) 26. Qg4+ {[%emt 0:01:23]} Bg5 {[%emt 0:00:18][%cal Re8e1]} 27. Nxh6+ {[%emt 0:01:10]} Kf8 {[%emt 0:00:20][%cal Re8e1]} 28. Rf1 {[%emt 0:00:56] Really sharp!} Qf4 {[%emt 0:02:07][%mdl 8192]} (28... Bxh6 $11 29. Rxh6 Qc4 30. Rh8+ Ke7 31. Qxc4 (31. Re1+ Kd6 $11) 31... bxc4 32. Re1+ Kd7 33. Rhxe8 Rxe8 34. Rxe8 Kxe8) 29. Nf5 $18 {[%emt 0:01:40][%cal Rh3h8]} Qe5 {[%emt 0:12:13] Prevents Rh8+.} 30. Qxg5 {[%emt 0:00:27] Threatening mate with Qh6+.} Rd6 {[%emt 0:01:12] Inhibits Qh6+.} 31. Qh5 {[%emt 0:00:45] Qh8+ would kill now.} Rg6 32. Qh8+ {[%emt 0:00:29]} Qxh8 {[%emt 0:01:09]} 33. Rxh8+ {[%emt 0:00:01]} Rg8 {[%emt 0:00:19]} 34. Rxg8+ {[%emt 0:00:09]} Kxg8 {[%emt 0:00:01]} 35. Nd6 {[%emt 0:00:09] White is clearly winning.} Re7 {[%emt 0:00:16]} 36. Nxb7 {[%emt 0:00:08]} Rxb7 {[%emt 0:00:08]} 37. Rd1 {[%emt 0:00:23]} Re7 {[%emt 0:00:30]} 38. Kf1 {[%emt 0:00:07] Inhibits Re2.} Re6 {[%emt 0:00:14]} 39. f4 {[%emt 0:00:48] Weighted Error Value: White=0.76/Black=0.50} 1-0

[Event "AUT Bundesliga Women 2021-22"]
[Site "Austria"]
[Date "2022.04.22"]
[Round "8.4"]
[White "Krassnitzer, Maria"]
[Black "Gritsch, Borbala"]
[Result "1/2-1/2"]
[ECO "B24"]
[WhiteElo "1641"]
[BlackElo "1485"]
[Annotator "NA RC COMBH"]
[PlyCount "68"]
[EventDate "2021.11.06"]
[EventType "team-tourn"]
[EventCountry "AUT"]
[SourceTitle "playchess.com"]
[Source "ChessBase"]
[SourceQuality "1"]
[TimeControl "40/5400+30:1800+30"]

1. e4 {[%emt 0:00:02]} c5 {[%emt 0:00:17]} 2. Nc3 {[%emt 0:00:09]} Nc6 {[%emt 0:00:12]} 3. Nf3 {[%emt 0:00:10]} d6 {[%emt 0:00:47]} 4. Be2 {[%emt 0:00:57]} Nf6 {[%emt 0:01:15]} 5. d3 {[%emt 0:01:05]} g6 {[%emt 0:01:18]} 6. O-O {[%emt 0:01:10]} Bg7 {[%emt 0:00:46]} 7. Rb1 {[%emt 0:03:14]} O-O {[%emt 0:02:00]} 8. a3 {[%emt 0:03:37]} Rb8 {[%emt 0:04:55]} 9. b4 {[%emt 0:02:46]} Nd7 {[%emt 0:05:06]} 10. Bd2 {[%emt 0:02:05]} b6 {[%emt 0:09:40]} 11. Qc1 {[%emt 0:09:09]} Nd4 {[%emt 0:04:45]} 12. Nxd4 {[%emt 0:02:26]} Bxd4 {[%emt 0:02:43]} 13. Nb5 {[%emt 0:01:35]} Ba6 {[%emt 0:11:11]} 14. Nxd4 {[%emt 0:00:55]} cxd4 {[%emt 0:00:25]} 15. Qb2 {[%emt 0:06:54]} e5 {[%emt 0:02:03]} 16. f4 {[%emt 0:02:54]} Rc8 {[%emt 0:06:36]} 17. c3 {[%emt 0:03:27]} dxc3 {[%emt 0:08:16]} 18. Bxc3 {[%emt 0:00:54]} f6 {[%emt 0:04:05]} 19. fxe5 {[%emt 0:04:47]} dxe5 {[%emt 0:01:20]} 20. Qb3+ {[%emt 0:06:35]} Kg7 {[%emt 0:02:01]} 21. Bd2 {[%emt 0:01:34]} Nb8 {[%emt 0:04:29]} 22. b5 {[%emt 0:02:53]} Qd4+ {[%emt 0:01:31]} 23. Kh1 {[%emt 0:00:57]} Bb7 {[%emt 0:00:17]} 24. Bb4 {[%emt 0:03:52]} Rf7 {[%emt 0:03:31]} 25. Qe6 {[%emt 0:05:57]} Qd7 {[%emt 0:02:20]} 26. Bg4 {[%emt 0:02:26]} Re8 {[%emt 0:03:35]} 27. Qxd7 {[%emt 0:04:00]} Nxd7 {[%emt 0:00:02]} 28. Rbc1 {[%emt 0:01:19]} h5 {[%emt 0:02:57]} 29. Be2 {[%emt 0:03:29]} Rd8 {[%emt 0:02:21]} 30. a4 {[%emt 0:03:14]} Nf8 {[%emt 0:02:06]} 31. Rc4 {[%emt 0:04:02]} Ne6 {[%emt 0:01:37]} 32. Rfc1 {[%emt 0:01:05]} Rfd7 {[%emt 0:00:25]} 33. g3 {[%emt 0:07:38]} Rd4 {[%emt 0:02:15]} 34. a5 {[%emt 0:02:24]} bxa5 {[%emt 0:03:05]} 1/2-1/2

[Event "AUT Bundesliga Women 2021-22"]
[Site "Austria"]
[Date "2022.04.22"]
[Round "8.5"]
[White "Novkovic, Julia"]
[Black "Stangl, Anita"]
[Result "1-0"]
[ECO "C05"]
[WhiteElo "2055"]
[BlackElo "2049"]
[Annotator "TA"]
[PlyCount "125"]
[EventDate "2021.11.06"]
[EventType "team-tourn"]
[EventCountry "AUT"]
[SourceTitle "playchess.com"]
[Source "ChessBase"]
[SourceQuality "1"]
[TimeControl "40/5400+30:1800+30"]

{[%evp 26,125,62,58,98,99,304,289,368,395,412,406,463,416,420,401,498,246,302,304,303,294,337,336,320,305,314,316,309,311,305,306,348,342,344,295,297,298,299,295,314,312,327,300,355,336,367,343,353,319,368,320,343,341,416,327,551,448,471,425,578,448,586,412,685,680,613,462,866,745,12795,12798,29971,29972,29969,29969,29977,29978,29981,29982,29981,29982,29979,29979,29986,29986,29990,29989,29989,29988,29989,29990,29991,29992,29993,29991,29994,29995,29995,29994,29994,29992]} 1. e4 {[%emt 0:00:26]} e6 {[%emt 0:00:04]} 2. d4 {[%emt 0:00:05]} d5 {[%emt 0:00:04]} 3. Nd2 {[%emt 0:00:05]} Nf6 {[%emt 0:00:09]} 4. e5 {[%emt 0:00:06]} Nfd7 {[%emt 0:00:08]} 5. Bd3 {[%emt 0:00:23]} c5 {[%emt 0:00:23]} 6. c3 {[%emt 0:00:07]} Nc6 {[%emt 0:00:13]} 7. Ne2 {[%emt 0:00:08]} Qb6 {[%emt 0:01:20]} 8. Nf3 {[%emt 0:00:13]} cxd4 {[%emt 0:02:01]} 9. cxd4 {[%emt 0:00:07]} f6 {[%emt 0:00:33]} 10. exf6 {[%emt 0:00:10]} Nxf6 {[%emt 0:00:10]} 11. O-O {[%emt 0:00:07]} Bd6 {[%emt 0:00:35]} 12. Bf4 {[%emt 0:00:22]} Bxf4 {[%emt 0:04:47]} 13. Nxf4 {[%emt 0:00:09]} O-O {[%emt 0:00:37]} 14. Re1 {[%emt 0:08:02] White is more active.} Ne4 {[%emt 0:03:29] C06: French Tarrasch: 3...Nf6 4 e5 Nfd7 5 Bd3 main lines.} 15. g3 {[%emt 0:07:46]} g5 $2 {[%emt 0:08:20]} (15... Nf6 $16 {is a better defense.}) 16. Bxe4 $18 {[%emt 0:01:26] [#]} dxe4 $146 {[%emt 0:19:20] White has a decisive advantage.} ({Predecessor:} 16... gxf4 17. Bc2 fxg3 18. hxg3 e5 19. dxe5 Bg4 20. Re3 d4 21. Rb3 Qc7 22. Be4 Nxe5 23. Rxb7 Nxf3+ 24. Bxf3 Qxb7 25. Bxb7 Bxd1 26. Bxa8 {½-½ (54) Von Bahr,O (2378)-Thorarinsson,P (2270) Split 2016}) 17. Nxg5 {[%emt 0:01:34]} Qxd4 {[%emt 0:02:58]} 18. Qh5 {[%emt 0:04:48][%csl Gg5][%cal Rh5h7] [#]} Qh8 {[%emt 0:08:30]} 19. Nfxe6 {[%emt 0:19:26]} Bxe6 {[%emt 0:01:30]} 20. Nxe6 {[%emt 0:00:06]} Qf6 {[%emt 0:07:29]} 21. Qg5+ {[%emt 0:08:13]} (21. Nxf8 $142 Rxf8 22. Rxe4 Qxf2+ 23. Kh1) 21... Kh8 {[%emt 0:02:21]} 22. Qxf6+ {[%emt 0:01:32]} Rxf6 {[%emt 0:00:07]} 23. Rxe4 {[%emt 0:01:41]} a5 {[%emt 0:04:40]} 24. Rd1 {[%emt 0:07:25]} Re8 {[%emt 0:04:28]} 25. Nc5 {[%emt 0:02:51]} Rxe4 {[%emt 0:02:06]} 26. Nxe4 {[%emt 0:00:08][%mdl 4096] Endgame KRN-KRN} Re6 {[%emt 0:00:12]} 27. f3 {[%emt 0:01:45]} Ne5 {[%emt 0:00:52]} 28. Kf2 {[%emt 0:04:46]} Rb6 {[%emt 0:02:55]} 29. b3 {[%emt 0:01:43]} a4 {[%emt 0:00:34]} 30. Rd5 {[%emt 0:05:21]} axb3 {[%emt 0:01:03]} 31. axb3 {[%emt 0:01:57]} ({Wrong is} 31. Rxe5 $2 bxa2 32. Ra5 Ra6 33. Rxa2 (33. Rxa6 $2 bxa6 34. Nc3 a1=Q $19) 33... Rxa2+ 34. Ke3 Rxh2 $19) 31... Nc6 {[%emt 0:01:50]} 32. Nd2 {[%emt 0:03:19]} Kg7 {[%emt 0:01:34]} 33. f4 {[%emt 0:05:22]} Rb4 {[%emt 0:01:25]} 34. Ke3 {[%emt 0:01:27] Prevents Nd4.} Kf6 {[%emt 0:02:03]} 35. Ne4+ {[%emt 0:05:52]} Ke6 {[%emt 0:01:57]} 36. Rd6+ {[%emt 0:00:37]} Ke7 {[%emt 0:00:26][%cal Ob4e4]} 37. Rd3 {[%emt 0:00:16]} Na5 {[%emt 0:01:25]} 38. Nd2 {[%emt 0:01:53]} Rb5 {[%emt 0:02:25]} 39. g4 {[%emt 0:01:44]} h5 {[%emt 0:00:35]} 40. h3 {[%emt 0:00:55]} Ke6 $2 {[%emt 0:04:14] [#]} (40... Nc6 {was called for.} 41. Rc3 Nb4 42. Rc7+ Kd6) 41. Kf3 {[%emt 0:33:27]} Nc6 {[%emt 0:32:09]} 42. Kg3 {[%emt 0:02:43]} Rb4 {[%emt 0:02:25]} 43. Nc4 {[%emt 0:00:00]} Ke7 {[%emt 0:00:00]} 44. Kh4 {[%emt 0:00:00]} Rb5 {[%emt 0:00:00]} (44... hxg4 $142 45. hxg4 b5) 45. Re3+ {[%emt 0:00:00]} Kf8 {[%emt 0:00:00]} 46. f5 {[%emt 0:00:00]} Nd4 {[%emt 0:00:00]} (46... hxg4 $142 47. hxg4 Nd4) 47. Kxh5 {[%emt 0:00:00]} Rxb3 {[%emt 0:00:00]} 48. Rxb3 {[%emt 0:00:00]} Nxb3 {[%emt 0:00:00] KN-KN} 49. Nb6 {[%emt 0:00:00] White mates.} Nd4 {[%emt 0:00:00]} 50. Kg5 {[%emt 0:00:00]} Kf7 {[%emt 0:00:00]} 51. Kf4 {[%emt 0:00:00]} Kg7 {[%emt 0:00:00]} 52. g5 {[%emt 0:00:00]} Ne2+ {[%emt 0:00:00]} 53. Kg4 {[%emt 0:00:00]} Nd4 {[%emt 0:00:00]} 54. h4 {[%emt 0:00:00][%cal Bh3h4,Bh4h5,Bh5h6][%mdl 32]} Nc2 {[%emt 0:00:00]} 55. h5 {[%emt 0:00:00]} Nd4 {[%emt 0:00:00]} 56. Kf4 {[%emt 0:00:00]} Nc6 {[%emt 0:00:00]} 57. Ke4 {[%emt 0:00:00]} Kf7 58. h6 {[%emt 0:00:29]} Nd8 {[%emt 0:00:00]} 59. g6+ {[%emt 0:00:53]} Kg8 {[%emt 0:00:00]} 60. Ke5 {[%emt 0:00:39]} Nc6+ {[%emt 0:00:00]} 61. Kf6 {[%emt 0:00:29]} Nd4 {[%emt 0:00:00]} 62. Nd5 {[%emt 0:01:32]} Nc6 {[%emt 0:00:00]} 63. Ne7+ {[%emt 0:00:15] Black did not feel at home in the position after the opening.  Weighted Error Value: White=0.45/Black=0.72} 1-0

[Event "AUT Bundesliga Women 2021-22"]
[Site "Austria"]
[Date "2022.04.22"]
[Round "8.6"]
[White "Wunderl, Eva"]
[Black "Motycakova, Monika"]
[Result "1/2-1/2"]
[ECO "C54"]
[WhiteElo "1916"]
[BlackElo "2105"]
[Annotator "TA"]
[PlyCount "64"]
[EventDate "2021.11.06"]
[EventType "team-tourn"]
[EventCountry "AUT"]
[SourceTitle "playchess.com"]
[Source "ChessBase"]
[SourceQuality "1"]
[TimeControl "40/5400+30:1800+30"]

{[%evp 11,64,13,14,-16,-9,-10,11,0,29,22,26,22,43,26,42,43,41,47,37,34,47,31,26,18,40,10,50,34,56,14,8,0,0,-23,0,0,0,0,0,0,-6,-11,0,0,0,-32,-31,-58,-35,-39,-34,-35,-35,-123,-117]} 1. e4 {[%emt 0:00:02]} e5 {[%emt 0:00:09]} 2. Nf3 {[%emt 0:00:25]} Nc6 {[%emt 0:00:04]} 3. Bc4 {[%emt 0:00:06]} Bc5 {[%emt 0:00:05]} 4. c3 {[%emt 0:00:12]} Nf6 {[%emt 0:00:05]} 5. d3 {[%emt 0:00:11]} d6 {[%emt 0:00:27]} 6. Bb3 {[%emt 0:02:14]} O-O {[%emt 0:03:07]} 7. Bg5 {[%emt 0:09:22][%cal Bc1g5,Bg5h4,Bh4g3][%mdl 32] C54: Giuoco Piano: 4 c3 Nf6, main lines with 5 d4 and 5 d3.} h6 {[%emt 0:02:19]} 8. Bh4 {[%emt 0:03:02]} a6 {[%emt 0:00:27]} 9. Nbd2 {[%emt 0:00:38] The position is equal.} Be6 {[%emt 0:06:03]} (9... g5 $5 {[%cal Rg5h4]} 10. Bg3 b5 $11) 10. O-O {[%emt 0:04:29] [#]} g5 $146 {[%emt 0:10:09]} ({Predecessor:} 10... Kh8 11. Nc4 g5 12. Bg3 Ba7 13. Re1 b5 14. Ne3 Ne7 15. Bc2 Ne8 16. d4 f6 {1-0 (63) Dutina,D (2197)-Kovac,P (2026) Bosnjaci 2022}) 11. Bg3 {[%emt 0:06:26]} Kg7 {[%emt 0:09:20]} 12. Nc4 {[%emt 0:07:33]} b5 {[%emt 0:08:30]} 13. Ne3 {[%emt 0:04:40]} Bxe3 {[%emt 0:01:59]} 14. fxe3 {[%emt 0:00:57]} Bxb3 {[%emt 0:10:09]} 15. axb3 {[%emt 0:04:10]} Qd7 {[%emt 0:05:43]} 16. Qc2 {[%emt 0:03:44]} Qe6 {[%emt 0:02:46]} 17. Rfe1 {[%emt 0:11:41][%cal Bf1e1,Be1e2,Be2a2][%mdl 32]} Qg4 {[%emt 0:06:27]} 18. Re2 {[%emt 0:05:56]} (18. c4 $5 {[%cal Rc4b5]}) 18... Rfe8 {[%emt 0:02:30]} 19. b4 {[%emt 0:08:06]} a5 {[%emt 0:15:50]} 20. bxa5 {[%emt 0:05:10]} Nxa5 {[%emt 0:00:09]} 21. b4 {[%emt 0:05:00]} Nc6 {[%emt 0:00:26]} 22. Qb1 {[%emt 0:04:59]} Reb8 {[%emt 0:03:54][%cal Be8b8,Bb8b7,Bb7a7][%mdl 32]} 23. Rea2 {[%emt 0:01:09]} Qc8 {[%emt 0:03:34]} 24. Qb3 {[%emt 0:02:43]} Qb7 {[%emt 0:03:16]} 25. Ra3 {[%emt 0:02:58]} Rxa3 {[%emt 0:03:03]} 26. Qxa3 {[%emt 0:00:41]} Qb6 {[%emt 0:00:03]} 27. Bf2 {[%emt 0:00:27]} Rb7 {[%emt 0:01:14]} 28. Qc1 {[%emt 0:02:48]} (28. Qa8 $5 {[%cal Ra1a6]} Ra7 29. Rxa7 Nxa7 30. Nd2 $11) 28... Ra7 {[%emt 0:00:25]} 29. Nd2 {[%emt 0:01:48]} Qb7 {[%emt 0:00:43]} 30. Nb3 {[%emt 0:00:29]} Qa8 {[%emt 0:00:05]} 31. Rxa7 {[%emt 0:01:59]} Qxa7 {[%emt 0:00:05]} 32. Qa1 {[%emt 0:00:05]} ({White should play} 32. Qb1 $15) 32... Qxa1+ {[%emt 0:02:02] Weighted Error Value: White=0.18 (very precise) /Black=0.09 (flawless)} 1/2-1/2